fUSD/lending_fUSD_20241227
["ID","MTS","AMOUNT","RATE_DAILY","PERIOD"]
[346803817,1735299046523,-500.0,0.00010888,2]
[346803818,1735299046532,-728.6,0.00010888,2]
[346803819,1735299046542,-237.27868555,0.00010888,2]
[346803820,1735299046551,-500.0,0.00010888,2]
[346803821,1735299046561,-500.0,0.00010888,2]
[346803822,1735299046570,-500.0,0.00010888,2]
[346803823,1735299046579,-528.04,0.00010888,2]
[346803824,1735299046587,-500.0,0.00010888,2]
[346803825,1735299046597,-698.93,0.00010888,2]
[346803826,1735299046606,-500.0,0.00010888,2]
[346803827,1735299046615,-500.0,0.00010888,2]
[346803828,1735299046624,-956.44,0.00010888,2]
[346803829,1735299046633,-500.0,0.00010888,2]
[346803830,1735299046651,-500.0,0.00010888,2]
[346803831,1735299046661,-500.0,0.00010888,2]
[346803832,1735299046670,-500.0,0.00010888,2]
[346803833,1735299046679,-688.81,0.00010888,2]
[346803834,1735299046688,-500.0,0.00010888,2]
[346803835,1735299046697,-1237.33,0.00010888,2]
[346803836,1735299046706,-500.0,0.00010888,2]
[346803837,1735299046715,-513.88230219,0.00010888,2]
[346803838,1735299046724,-500.0,0.00010888,2]
[346803839,1735299046733,-500.0,0.00010888,2]
[346803840,1735299046742,-2845.98,0.00010888,2]
[346803841,1735299046751,-500.0,0.00010888,2]
[346803842,1735299046760,-507.94648273,0.00010888,2]
[346803843,1735299046769,-500.0,0.00010888,2]
[346803844,1735299046778,-500.0,0.00010888,2]
[346803845,1735299046787,-500.0,0.00010888,2]
[346803846,1735299046795,-500.0,0.00010888,2]
[346803847,1735299046804,-500.0,0.00010888,2]
[346803848,1735299046813,-500.0,0.00010888,2]
[346803849,1735299046822,-1043.56,0.00010888,2]
[346803850,1735299046831,-500.0,0.00010888,2]
[346803851,1735299046840,-879.93,0.00010888,2]
[346803852,1735299046849,-3111.6,0.00010888,2]
[346803853,1735299046858,-500.0,0.00010888,2]
[346803854,1735299046866,-680.78,0.00010888,2]
[346803855,1735299046875,-596.8469121,0.00010888,2]
[346803856,1735299046885,-500.0,0.00010888,2]
[346803857,1735299046894,-500.0,0.00010888,2]
[346803858,1735299046903,-438.766097,0.00010888,2]
[346803859,1735299046913,-500.0,0.00010888,2]
[346803860,1735299046922,-500.0,0.00010888,2]
[346803861,1735299046932,-500.0,0.00010888,2]
[346803862,1735299046942,-500.0,0.00010888,2]
[346803863,1735299046951,-669.03,0.00010888,2]
[346803864,1735299046959,-500.0,0.00010888,2]
[346803865,1735299046968,-500.0,0.00010888,2]
[346803866,1735299046977,-500.0,0.00010888,2]
[346803867,1735299046986,-500.0,0.00010888,2]
[346803868,1735299046995,-500.0,0.00010888,2]
[346803869,1735299047003,-500.0,0.00010888,2]
[346803870,1735299047012,-500.0,0.00010888,2]
[346803871,1735299047021,-500.0,0.00010888,2]
[346803872,1735299047030,-5099.42,0.00010888,2]
[346803873,1735299047039,-1337.57,0.00010888,2]
[346803874,1735299047047,-1408.17,0.00010888,2]
[346803875,1735299047056,-500.0,0.00010888,2]
[346803876,1735299047066,-500.0,0.00010888,2]
[346803877,1735299047075,-981.92,0.00010888,2]
[346803878,1735299047084,-387.55911208,0.00010888,2]
[346803879,1735299047093,-500.0,0.00010888,2]
[346803880,1735299047103,-706.24,0.00010888,2]
[346803881,1735299047111,-500.0,0.00010888,2]
[346803882,1735299047120,-515.73405562,0.00010888,2]
[346803883,1735299047129,-500.0,0.00010888,2]
[346803884,1735299047138,-14266.47,0.00010888,2]
[346803885,1735299047147,-1225.17,0.00010888,2]
[346803886,1735299047155,-816.56,0.00010888,2]
[346803887,1735299047165,-500.0,0.00010888,2]
[346803888,1735299047174,-500.0,0.00010888,2]
[346803889,1735299047183,-629.03,0.00010888,2]
[346803890,1735299047192,-793.36,0.00010888,2]
[346803891,1735299047201,-500.0,0.00010888,2]
[346803892,1735299047211,-500.0,0.00010888,2]
[346803893,1735299047220,-891.44,0.00010888,2]
[346803894,1735299047229,-4633.67,0.00010888,2]
[346803895,1735299047239,-500.0,0.00010888,2]
[346803896,1735299047245,-500.0,0.00010888,2]
[346803897,1735299047252,-500.0,0.00010888,2]
[346803898,1735299047258,-500.0,0.00010888,2]
[346803899,1735299047264,-1152.04,0.00010888,2]
[346803900,1735299047270,-1047.63,0.00010888,2]
[346803901,1735299047276,-500.0,0.00010888,2]
[346803902,1735299047283,-751.71,0.00010888,2]
[346803903,1735299047289,-500.0,0.00010888,2]
[346803904,1735299047295,-500.0,0.00010888,2]
[346803905,1735299047301,-610.7,0.00010888,2]
[346803906,1735299047308,-513.71275638,0.00010888,2]
[346803907,1735299047315,-500.0,0.00010888,2]
[346803908,1735299047326,-500.0,0.00010888,2]
[346803909,1735299047335,-525.24,0.00010888,2]
[346803910,1735299047344,-1066.6,0.00010888,2]
[346803911,1735299047353,-500.0,0.00010888,2]
[346803912,1735299047365,-852.42,0.00010888,2]
[346803913,1735299047373,-502.03,0.00010888,2]
[346803914,1735299047382,-500.0,0.00010888,2]
[346803915,1735299047390,-600.69,0.00010888,2]
[346803916,1735299047399,-4664.27,0.00010888,2]
[346803917,1735299047408,-1078.13,0.00010888,2]
[346803918,1735299047417,-500.0,0.00010888,2]
[346803919,1735299047426,-500.0,0.00010888,2]
[346803920,1735299047435,-500.0,0.00010888,2]
[346803921,1735299047444,-500.0,0.00010888,2]
[346803922,1735299047453,-552.2,0.00010888,2]
[346803923,1735299047461,-500.0,0.00010888,2]
[346803924,1735299047470,-500.0,0.00010888,2]
[346803925,1735299047479,-500.0,0.00010888,2]
[346803926,1735299047488,-500.0,0.00010888,2]
[346803927,1735299047497,-500.0,0.00010888,2]
[346803928,1735299047506,-500.0,0.00010888,2]
[346803929,1735299047515,-4737.27,0.00010888,2]
[346803930,1735299047524,-500.0,0.00010888,2]
[346803931,1735299047533,-8278.91,0.00010888,2]
[346803932,1735299047542,-669.16,0.00010888,2]
[346803933,1735299047551,-500.0,0.00010888,2]
[346803934,1735299047560,-253.01702685,0.00010888,2]
[346803935,1735299047568,-500.0,0.00010888,2]
[346803936,1735299047577,-500.0,0.00010888,2]
[346803937,1735299047586,-500.0,0.00010888,2]
[346803938,1735299047595,-500.0,0.00010888,2]
[346803939,1735299047604,-856.77,0.00010888,2]
[346803940,1735299047613,-500.0,0.00010888,2]
[346803941,1735299047622,-500.0,0.00010888,2]
[346803942,1735299047631,-500.0,0.00010888,2]
[346803943,1735299047640,-500.0,0.00010888,2]
[346803944,1735299047649,-500.0,0.00010888,2]
[346803945,1735299047658,-500.0,0.00010888,2]
[346803946,1735299047668,-500.0,0.00010888,2]
[346803947,1735299047677,-500.0,0.00010888,2]
[346803948,1735299047687,-1392.67,0.00010888,2]
[346803949,1735299047695,-684.77,0.00010888,2]
[346803950,1735299047705,-500.0,0.00010888,2]
[346803951,1735299047714,-500.0,0.00010888,2]
[346803952,1735299047723,-4076.28,0.00010888,2]
[346803953,1735299047732,-500.0,0.00010888,2]
[346803954,1735299047741,-500.0,0.00010888,2]
[346803955,1735299047750,-500.0,0.00010888,2]
[346803956,1735299047759,-19087.34,0.00010888,2]
[346803957,1735299047768,-1465.83,0.00010888,2]
[346803958,1735299047777,-586.5896025,0.00010889,2]
[346803959,1735299047786,-502.73981216,0.00010889,2]
[346803960,1735299047795,-500.0,0.00010889,2]
[346803961,1735299047804,-500.0,0.00010889,2]
[346803962,1735299047815,-500.0,0.00010889,2]
[346803963,1735299047825,-411.54114646,0.00010889,2]
[346803964,1735299047834,-500.0,0.00010889,2]
[346803965,1735299047843,-500.0,0.00010889,2]
[346803966,1735299047852,-507.43957148,0.00010889,2]
[346803967,1735299047861,-500.0,0.00010889,2]
[346803968,1735299047870,-500.0,0.00010889,2]
[346803969,1735299047879,-500.0,0.00010889,2]
[346803970,1735299047888,-505.7822,0.00010889,2]
[346803971,1735299047897,-500.0,0.00010889,2]
[346803972,1735299047907,-500.0,0.00010889,2]
[346803973,1735299047915,-500.0,0.00010889,2]
[346803974,1735299047925,-500.0,0.00010889,2]
[346803975,1735299047934,-500.0,0.00010889,2]
[346803976,1735299047943,-500.0,0.00010889,2]
[346803977,1735299047952,-750.21,0.00010889,2]
[346803978,1735299047961,-491.6608515,0.00010889,2]
[346803979,1735299047970,-500.0,0.00010889,2]
[346803980,1735299047979,-500.0,0.00010889,2]
[346803981,1735299047988,-751.66,0.00010889,2]
[346803982,1735299047997,-500.0,0.00010889,2]
[346803983,1735299048006,-500.0,0.00010889,2]
[346803984,1735299048015,-500.0,0.00010889,2]
[346803985,1735299048024,-500.0,0.00010889,2]
[346803986,1735299048033,-500.0,0.00010889,2]
[346803987,1735299048042,-505.19891319,0.00010889,2]
[346803988,1735299048051,-500.0,0.00010889,2]
[346803989,1735299048061,-500.0,0.00010889,2]
[346803990,1735299048070,-500.0,0.00010889,2]
[346803991,1735299048079,-500.0,0.00010889,2]
[346803992,1735299048088,-500.0,0.00010889,2]
[346803993,1735299048097,-883.51,0.00010889,2]
[346803994,1735299048106,-500.0,0.00010889,2]
[346803995,1735299048115,-500.0,0.00010889,2]
[346803996,1735299048125,-500.0,0.00010889,2]
[346803997,1735299048134,-500.0,0.00010889,2]
[346803998,1735299048144,-581.8,0.00010889,2]
[346803999,1735299048153,-500.0,0.00010889,2]
[346804000,1735299048164,-500.0,0.00010889,2]
[346804001,1735299048175,-500.0,0.00010889,2]
[346804002,1735299048185,-500.0,0.00010889,2]
[346804003,1735299048194,-500.0,0.00010889,2]
[346804004,1735299048204,-500.0,0.00010889,2]
[346804005,1735299048215,-500.0,0.00010889,2]
[346804006,1735299048225,-736.56,0.00010889,2]
[346804007,1735299048235,-500.0,0.00010889,2]
[346804008,1735299048466,-500.0,0.00010889,2]
[346804009,1735299048476,-500.0,0.00010889,2]
[346804010,1735299048486,-598.4,0.00010889,2]
[346804011,1735299048496,-500.0,0.00010889,2]
[346804012,1735299048506,-500.0,0.00010889,2]
[346804013,1735299048516,-500.0,0.00010889,2]
[346804014,1735299048526,-500.0,0.00010889,2]
[346804015,1735299048536,-500.0,0.00010889,2]
[346804016,1735299048546,-500.0,0.00010889,2]
[346804017,1735299048556,-500.0,0.00010889,2]
[346804018,1735299048571,-500.0,0.00010889,2]
[346804019,1735299048581,-500.0,0.00010889,2]
[346804020,1735299048591,-500.0,0.00010889,2]
[346804021,1735299048600,-680.17,0.00010889,2]
[346804022,1735299048610,-500.0,0.00010889,2]
[346804023,1735299048620,-500.0,0.00010889,2]
[346804024,1735299048629,-500.0,0.00010889,2]
[346804025,1735299048639,-660.36,0.00010889,2]
[346804026,1735299048649,-500.0,0.00010889,2]
[346804027,1735299048658,-500.0,0.00010889,2]
[346804028,1735299048667,-500.0,0.00010889,2]
[346804029,1735299048677,-384.21313669,0.00010889,2]
[346804030,1735299048686,-500.0,0.00010889,2]
[346804031,1735299048695,-500.0,0.00010889,2]
[346804032,1735299048704,-500.0,0.00010889,2]
[346804033,1735299048714,-500.0,0.00010889,2]
[346804034,1735299048723,-933.17,0.00010889,2]
[346804035,1735299048733,-500.0,0.00010889,2]
[346804036,1735299048742,-500.0,0.00010889,2]
[346804037,1735299048751,-1057.13,0.00010889,2]
[346804038,1735299048760,-500.0,0.00010889,2]
[346804039,1735299048770,-500.0,0.00010889,2]
[346804040,1735299048779,-501.99746662,0.00010889,2]
[346804041,1735299048788,-500.0,0.00010889,2]
[346804042,1735299048797,-500.0,0.00010889,2]
[346804043,1735299048807,-500.0,0.00010889,2]
[346804044,1735299048819,-500.0,0.00010889,2]
[346804045,1735299048828,-500.0,0.00010889,2]
[346804046,1735299048838,-500.0,0.00010889,2]
[346804047,1735299048847,-500.0,0.00010889,2]
[346804048,1735299048857,-1384.16,0.00010889,2]
[346804049,1735299048867,-500.0,0.00010889,2]
[346804050,1735299048879,-500.0,0.00010889,2]
[346804051,1735299048889,-500.0,0.00010889,2]
[346804052,1735299048899,-500.0,0.00010889,2]
[346804053,1735299048908,-500.0,0.00010889,2]
[346804054,1735299048918,-502.50191121,0.00010889,2]
[346804055,1735299048927,-500.0,0.00010889,2]
[346804056,1735299048936,-500.0,0.00010889,2]
[346804057,1735299048945,-500.0,0.00010889,2]
[346804058,1735299048954,-500.0,0.00010889,2]
[346804059,1735299048963,-500.0,0.00010889,2]
[346804060,1735299048973,-500.0,0.00010889,2]
[346804061,1735299048982,-500.0,0.00010889,2]
[346804062,1735299048991,-500.0,0.00010889,2]
[346804063,1735299049001,-500.0,0.00010889,2]
[346804064,1735299049011,-500.0,0.00010889,2]
[346804065,1735299049020,-500.0,0.00010889,2]
[346804066,1735299049030,-500.0,0.00010889,2]
[346804067,1735299049040,-500.0,0.00010889,2]
[346804068,1735299049049,-1203.44,0.00010889,2]
[346804069,1735299049062,-500.0,0.00010889,2]
[346804070,1735299049072,-500.0,0.00010889,2]
[346804071,1735299049081,-500.0,0.00010889,2]
[346804072,1735299049091,-500.0,0.00010889,2]
[346804073,1735299049101,-500.0,0.00010889,2]
[346804074,1735299049111,-500.0,0.00010889,2]
[346804075,1735299049120,-1396.22,0.00010889,2]
[346804076,1735299049130,-2742.04,0.00010889,2]
[346804077,1735299049139,-500.0,0.00010889,2]
[346804078,1735299049148,-1669.16,0.00010889,2]
[346804079,1735299049159,-500.0,0.00010889,2]
[346804080,1735299049172,-500.0,0.00010889,2]
[346804081,1735299049181,-500.0,0.00010889,2]
[346804082,1735299049190,-980.43,0.00010889,2]
[346804083,1735299049200,-1283.92,0.00010889,2]
[346804084,1735299049210,-500.0,0.00010889,2]
[346804085,1735299049220,-2165.43,0.00010889,2]
[346804086,1735299049230,-500.0,0.00010889,2]
[346804087,1735299049241,-3255.41,0.00010889,2]
[346804088,1735299049251,-500.0,0.00010889,2]
[346804089,1735299049261,-1144.37,0.00010889,2]
[346804090,1735299049270,-500.0,0.00010889,2]
[346804091,1735299049280,-2654.49,0.00010889,2]
[346804092,1735299049289,-1649.65,0.00010889,2]
[346804093,1735299049299,-464.68597498,0.00010889,2]
[346804094,1735299049308,-2388.1,0.00010889,2]
[346804095,1735299049320,-500.0,0.00010889,2]
[346804096,1735299049330,-887.95,0.00010889,2]
[346804097,1735299049340,-500.0,0.00010889,2]
[346804098,1735299049349,-2339.84,0.00010889,2]
[346804099,1735299049360,-3442.87,0.00010889,2]
[346804100,1735299049370,-500.0,0.00010889,2]
[346804101,1735299049379,-500.0,0.00010889,2]
[346804102,1735299049389,-1320.64,0.00010889,2]
[346804103,1735299049399,-2956.25,0.00010889,2]
[346804104,1735299049409,-541.3,0.00010889,2]
[346804105,1735299049418,-500.0,0.00010889,2]
[346804106,1735299049429,-1411.8,0.00010889,2]
[346804107,1735299049439,-500.0,0.00010889,2]
[346804108,1735299049448,-1154.83,0.00010889,2]
[346804109,1735299049457,-500.0,0.00010889,2]
[346804110,1735299049467,-854.41,0.00010889,2]
[346804111,1735299049476,-665.5,0.00010889,2]
[346804112,1735299049485,-1715.85,0.00010889,2]
[346804113,1735299049494,-500.0,0.00010889,2]
[346804114,1735299049504,-2017.61,0.00010889,2]
[346804115,1735299049514,-1611.14,0.00010889,2]
[346804116,1735299049523,-600.6,0.00010889,2]
[346804117,1735299049532,-1482.37,0.00010889,2]
[346804118,1735299049541,-983.17,0.00010889,2]
[346804119,1735299049550,-500.0,0.00010889,2]
[346804120,1735299049562,-667.49,0.00010889,2]
[346804121,1735299049571,-1355.18,0.00010889,2]
[346804122,1735299049580,-527.99,0.00010889,2]
[346804123,1735299049590,-500.0,0.00010889,2]
[346804124,1735299049599,-500.0,0.00010889,2]
[346804125,1735299049608,-500.0,0.00010889,2]
[346804126,1735299049617,-500.0,0.00010889,2]
[346804127,1735299049626,-2456.21,0.00010889,2]
[346804128,1735299049635,-500.0,0.00010889,2]
[346804129,1735299049644,-2251.1,0.00010889,2]
[346804130,1735299049653,-500.0,0.00010889,2]
[346804131,1735299049663,-500.0,0.00010889,2]
[346804132,1735299049672,-584.78,0.00010889,2]
[346804133,1735299049682,-500.0,0.00010889,2]
[346804134,1735299049691,-500.0,0.00010889,2]
[346804135,1735299049700,-500.0,0.00010889,2]
[346804136,1735299049709,-1111.6,0.00010889,2]
[346804137,1735299049718,-1958.15,0.00010889,2]
[346804138,1735299049727,-500.0,0.00010889,2]
[346804139,1735299049736,-500.0,0.00010889,2]
[346804140,1735299049745,-848.11,0.00010889,2]
[346804141,1735299049754,-1019.49,0.00010889,2]
[346804142,1735299049764,-500.0,0.00010889,2]
[346804143,1735299049772,-1628.44,0.00010889,2]
[346804144,1735299049782,-500.0,0.00010889,2]
[346804145,1735299049791,-500.0,0.00010889,2]
[346804146,1735299049799,-1407.41,0.00010889,2]
[346804147,1735299049808,-500.0,0.00010889,2]
[346804148,1735299049821,-500.0,0.00010889,2]
[346804149,1735299049830,-1964.18,0.00010889,2]
[346804150,1735299049839,-550.29,0.00010889,2]
[346804151,1735299049849,-500.0,0.00010889,2]
[346804152,1735299049858,-500.0,0.00010889,2]
[346804153,1735299049867,-500.0,0.00010889,2]
[346804154,1735299049876,-636.95,0.00010889,2]
[346804155,1735299049885,-615.38369792,0.00010889,2]
[346804156,1735299049895,-1519.34,0.00010889,2]
[346804157,1735299049903,-571.31,0.00010889,2]
[346804158,1735299049912,-500.0,0.00010889,2]
[346804159,1735299049921,-1082.37,0.00010889,2]
[346804160,1735299049930,-500.0,0.00010889,2]
[346804161,1735299049939,-500.0,0.00010889,2]
[346804162,1735299049948,-1283.49,0.00010889,2]
[346804163,1735299049957,-1866.25,0.00010889,2]
[346804164,1735299049967,-500.0,0.00010889,2]
[346804165,1735299049977,-500.0,0.00010889,2]
[346804166,1735299049986,-500.0,0.00010889,2]
[346804167,1735299049995,-500.0,0.00010889,2]
[346804168,1735299050004,-1778.05,0.00010889,2]
[346804169,1735299050013,-500.0,0.00010889,2]
[346804170,1735299050022,-500.0,0.00010889,2]
[346804171,1735299050031,-1266.55,0.00010889,2]
[346804172,1735299050040,-500.0,0.00010889,2]
[346804173,1735299050049,-500.0,0.00010889,2]
[346804174,1735299050058,-500.0,0.00010889,2]
[346804175,1735299050068,-736.68,0.00010889,2]
[346804176,1735299050078,-500.0,0.00010889,2]
[346804177,1735299050087,-1504.88,0.00010889,2]
[346804178,1735299050096,-500.0,0.00010889,2]
[346804179,1735299050105,-500.0,0.00010889,2]
[346804180,1735299050114,-1933.44,0.00010889,2]
[346804181,1735299050123,-500.0,0.00010889,2]
[346804182,1735299050132,-536.81,0.00010889,2]
[346804183,1735299050141,-500.0,0.00010889,2]
[346804184,1735299050150,-1330.36,0.00010889,2]
[346804185,1735299050159,-2001.73,0.00010889,2]
[346804186,1735299050171,-937.64,0.00010889,2]
[346804187,1735299050180,-500.0,0.00010889,2]
[346804188,1735299050189,-1247.88,0.00010889,2]
[346804189,1735299050198,-500.0,0.00010889,2]
[346804190,1735299050208,-1149.43,0.00010889,2]
[346804191,1735299050217,-1478.24,0.00010889,2]
[346804192,1735299050226,-500.0,0.00010889,2]
[346804193,1735299050237,-500.0,0.00010889,2]
[346804194,1735299050247,-500.0,0.00010889,2]
[346804195,1735299050257,-527.96,0.00010889,2]
[346804196,1735299050267,-500.0,0.00010889,2]
[346804197,1735299050276,-1286.98,0.00010889,2]
[346804198,1735299050285,-500.0,0.00010889,2]
[346804199,1735299050295,-819.85,0.00010889,2]
[346804200,1735299050304,-500.0,0.00010889,2]
[346804201,1735299050315,-1386.42,0.00010889,2]
[346804202,1735299050325,-2373.8,0.00010889,2]
[346804203,1735299050334,-1389.65,0.00010889,2]
[346804204,1735299050344,-500.0,0.00010889,2]
[346804205,1735299050354,-500.0,0.00010889,2]
[346804206,1735299050364,-1075.49,0.00010889,2]
[346804207,1735299050374,-500.0,0.00010889,2]
[346804208,1735299050384,-500.0,0.00010889,2]
[346804209,1735299050393,-500.0,0.00010889,2]
[346804210,1735299050404,-1168.92,0.00010889,2]
[346804211,1735299050414,-1626.85,0.00010889,2]
[346804212,1735299050423,-1530.27,0.00010889,2]
[346804213,1735299050433,-1173.32,0.00010889,2]
[346804214,1735299050443,-1914.9,0.00010889,2]
[346804215,1735299050452,-500.0,0.00010889,2]
[346804216,1735299050462,-574.13,0.00010889,2]
[346804217,1735299050471,-1087.56,0.00010889,2]
[346804218,1735299050481,-839.34,0.00010889,2]
[346804219,1735299050491,-1324.17,0.00010889,2]
[346804220,1735299050500,-1822.31,0.00010889,2]
[346804221,1735299050510,-1801.92,0.00010889,2]
[346804222,1735299050519,-500.0,0.00010889,2]
[346804223,1735299050528,-857.12,0.00010889,2]
[346804224,1735299050538,-500.0,0.00010889,2]
[346804225,1735299050547,-500.0,0.00010889,2]
[346804226,1735299050556,-2469.56,0.00010889,2]
[346804227,1735299050567,-500.0,0.00010889,2]
[346804228,1735299050581,-594.94,0.00010889,2]
[346804229,1735299050591,-595.46,0.00010889,2]
[346804230,1735299050601,-1111.27,0.00010889,2]
[346804231,1735299050610,-500.0,0.00010889,2]
[346804232,1735299050619,-1335.46,0.00010889,2]
[346804233,1735299050629,-539.4,0.00010889,2]
[346804234,1735299050639,-2324.16,0.00010889,2]
[346804235,1735299050649,-500.0,0.00010889,2]
[346804236,1735299050658,-2527.99,0.00010889,2]
[346804237,1735299050667,-618.02,0.00010889,2]
[346804238,1735299050676,-500.0,0.00010889,2]
[346804239,1735299050685,-1287.97,0.00010889,2]
[346804240,1735299050694,-2678.35,0.00010889,2]
[346804241,1735299050703,-500.0,0.00010889,2]
[346804242,1735299050711,-500.0,0.00010889,2]
[346804243,1735299050720,-1532.58,0.00010889,2]
[346804244,1735299050729,-500.0,0.00010889,2]
[346804245,1735299050739,-1786.74,0.00010889,2]
[346804246,1735299050748,-1112.09,0.00010889,2]
[346804247,1735299050758,-2960.36,0.00010889,2]
[346804248,1735299050839,-562.57,0.00010889,2]
[346804249,1735299050848,-500.0,0.00010889,2]
[346804250,1735299050858,-1619.79,0.00010889,2]
[346804251,1735299050867,-1861.75,0.00010889,2]
[346804252,1735299050876,-1257.72,0.00010889,2]
[346804253,1735299050885,-1634.72,0.00010889,2]
[346804254,1735299050894,-500.0,0.00010889,2]
[346804255,1735299050903,-1248.15,0.00010889,2]
[346804256,1735299050912,-500.0,0.00010889,2]
[346804257,1735299050922,-3477.31,0.00010889,2]
[346804258,1735299050931,-1297.83,0.00010889,2]
[346804259,1735299050941,-1562.86,0.00010889,2]
[346804260,1735299050950,-500.0,0.00010889,2]
[346804261,1735299050960,-945.85,0.00010889,2]
[346804262,1735299050971,-1208.64,0.00010889,2]
[346804263,1735299050980,-2014.26,0.00010889,2]
[346804264,1735299050990,-1052.99,0.00010889,2]
[346804265,1735299050999,-804.05,0.00010889,2]
[346804266,1735299051009,-500.0,0.00010889,2]
[346804267,1735299051019,-500.0,0.00010889,2]
[346804268,1735299051028,-1237.02,0.00010889,2]
[346804269,1735299051038,-500.0,0.00010889,2]
[346804270,1735299051047,-1732.64,0.00010889,2]
[346804271,1735299051058,-1538.34,0.00010889,2]
[346804272,1735299051068,-500.0,0.00010889,2]
[346804273,1735299051077,-2938.92,0.00010889,2]
[346804274,1735299051086,-500.0,0.00010889,2]
[346804275,1735299051095,-2041.1,0.00010889,2]
[346804276,1735299051105,-1098.33,0.00010889,2]
[346804277,1735299051114,-1525.33,0.00010889,2]
[346804278,1735299051123,-874.68,0.00010889,2]
[346804279,1735299051132,-500.0,0.00010889,2]
[346804280,1735299051141,-500.0,0.00010889,2]
[346804281,1735299051150,-500.0,0.00010889,2]
[346804282,1735299051160,-500.0,0.00010889,2]
[346804283,1735299051172,-3392.87,0.00010889,2]
[346804284,1735299051182,-500.0,0.00010889,2]
[346804285,1735299051191,-150.0,0.00010889,2]
[346804286,1735299051200,-1383.71,0.00010889,2]
[346804287,1735299051211,-500.0,0.00010889,2]
[346804288,1735299051220,-1502.76,0.00010889,2]
[346804289,1735299051229,-1073.35,0.00010889,2]
[346804290,1735299051239,-2533.37,0.00010889,2]
[346804291,1735299051248,-500.0,0.00010889,2]
[346804292,1735299051258,-1654.0,0.00010889,2]
[346804293,1735299051267,-1306.92,0.00010889,2]
[346804294,1735299051277,-939.14,0.00010889,2]
[346804295,1735299051286,-500.0,0.00010889,2]
[346804296,1735299051295,-1187.74,0.00010889,2]
[346804297,1735299051304,-905.26,0.00010889,2]
[346804298,1735299051314,-749.8,0.00010889,2]
[346804299,1735299051323,-500.0,0.00010889,2]
[346804300,1735299051332,-500.0,0.00010889,2]
[346804301,1735299051342,-675.7,0.00010889,2]
[346804302,1735299051351,-500.0,0.00010889,2]
[346804303,1735299051361,-1470.76,0.00010889,2]
[346804304,1735299051370,-1360.97,0.00010889,2]
[346804305,1735299051380,-2322.45,0.00010889,2]
[346804306,1735299051389,-1280.32,0.00010889,2]
[346804307,1735299051398,-619.13,0.00010889,2]
[346804308,1735299051407,-500.0,0.00010889,2]
[346804309,1735299051417,-755.51,0.00010889,2]
[346804310,1735299051426,-500.0,0.00010889,2]
[346804311,1735299051436,-1855.8,0.00010889,2]
[346804312,1735299051445,-1322.18,0.00010889,2]
[346804313,1735299051455,-500.0,0.00010889,2]
[346804314,1735299051464,-500.0,0.00010889,2]
[346804315,1735299051474,-500.0,0.00010889,2]
[346804316,1735299051483,-709.91,0.00010889,2]